fUST/lending_fUST_20260317
["ID","MTS","AMOUNT","RATE_DAILY","PERIOD"]
[408474291,1773700243349,-504.0,5.863e-05,2]
[408474293,1773700243359,-1749.2676947,6.25e-05,2]
[408474295,1773700243368,-1592.7625988,6.548e-05,2]
[408474297,1773700243377,-300.0,7.189e-05,2]
[408474299,1773700243387,-500.0,7.19e-05,2]
[408474300,1773700243395,-500.0,7.19e-05,2]
[408474302,1773700243404,-500.0,7.19e-05,2]
[408474304,1773700243413,-2004.39878551,7.437e-05,2]
[408474307,1773700243424,-528.15389607,7.437e-05,2]
[408474309,1773700243434,-18726.39638448,7.5e-05,2]
[408474318,1773700243513,-1067.43468652,7.5e-05,2]
[408474320,1773700243522,-1768.64008914,7.521e-05,2]
[408474322,1773700243533,-2389.95564248,7.521e-05,2]
[408474324,1773700243543,-384.37751387,7.535e-05,2]
[408474326,1773700243552,-500.0,7.535e-05,2]
[408474328,1773700243562,-396.84661191,7.535e-05,2]
[408474330,1773700243571,-11967.80239654,7.536e-05,2]
[408474405,1773700246042,-1739.089,7.536e-05,2]
[408474406,1773700246272,-24368.94900374,7.536e-05,2]
[408474407,1773700272501,-1344.55434467,7.386e-05,2]
[408474408,1773700556262,-5000.0,7.106e-05,2]
[408474411,1773700802506,176.41,2e-05,2]
[408474412,1773700803407,176.41,2e-05,2]
[408474447,1773701431988,-1200.0,5.667e-05,2]
[408474448,1773701431999,-1766.91,5.668e-05,2]
[408474449,1773701432011,-1297.01723482,5.668e-05,2]
[408474551,1773701438107,-1936.07276518,5.668e-05,2]
[408474552,1773701438118,-502.0,5.668e-05,2]
[408474553,1773701438129,-429.40258187,5.725e-05,2]
[408474554,1773701438139,-300.0,5.782e-05,2]
[408474555,1773701438150,-300.0,5.782e-05,2]
[408474556,1773701438160,-5000.0,5.783e-05,2]
[408474557,1773701438170,-1043.3844462,5.842e-05,2]
[408474558,1773701438180,-300.0,6.093e-05,2]
[408474559,1773701438191,-1680.0,6.234e-05,2]
[408474560,1773701438201,-4126.6716275,6.281e-05,2]
[408474561,1773701438211,-420.0,6.36e-05,2]
[408474562,1773701438221,-386.0,6.36e-05,2]
[408474563,1773701438231,-178.0,6.857e-05,2]
[408474564,1773701438240,-587.0,6.996e-05,2]
[408474565,1773701438251,-50.14702267,7.059e-05,2]
[408474566,1773701438265,-527.18973794,7.059e-05,2]
[408474580,1773701440598,-301.51679137,7.059e-05,2]
[408474581,1773701440609,-198.43835098,7.2e-05,2]
[408474582,1773701440620,-305.10192131,7.2e-05,2]
[408474583,1773701440629,-279.10807313,7.2e-05,2]
[408474584,1773701440640,-296.4742771,7.2e-05,2]
[408474585,1773701440651,-453.554896,7.25e-05,2]
[408474586,1773701440661,-176.30693364,7.3e-05,2]
[408474587,1773701440670,-234.26447677,7.3e-05,2]
[408474588,1773701440679,-220.21520076,7.3e-05,2]
[408474589,1773701440691,-229.6508275,7.3e-05,2]
[408474590,1773701440702,-500.0,7.313e-05,2]
[408474591,1773701440711,-500.0,7.313e-05,2]
[408474592,1773701440721,-500.0,7.313e-05,2]
[408474593,1773701440730,-500.0,7.313e-05,2]
[408474594,1773701440740,-500.0,7.313e-05,2]
[408474595,1773701440749,-500.0,7.313e-05,2]
[408474596,1773701440758,-500.0,7.313e-05,2]
[408474597,1773701440766,-500.0,7.313e-05,2]
[408474598,1773701440775,-166.255,7.335e-05,2]
[408474599,1773701440784,-4738.23392643,7.336e-05,2]
[408474600,1773701440796,-330.36976961,7.336e-05,2]
[408474610,1773701445413,-499.48143251,7.336e-05,2]
[408474611,1773701445540,-191.40995926,7.336e-05,2]
[408474612,1773701445551,-806.99127554,7.336e-05,2]
[408474615,1773701446095,-4717.07435341,7.336e-05,2]
[408474616,1773701446150,-95868.43507624,7.336e-05,2]
[408474617,1773701446265,-1992.05983524,7.336e-05,2]
[408474618,1773701446276,-5680.42103755,7.336e-05,2]
[408474622,1773702002275,154.02,2e-05,2]
[408474673,1773702632186,-683.5,4.689e-05,2]
[408474681,1773702632246,-196.7655563,4.689e-05,2]
[408474683,1773702632255,-218.8026665,4.736e-05,2]
[408474771,1773702638476,-507.7443354,4.736e-05,2]
[408474773,1773702638486,-492.2556646,4.784e-05,2]
[408474816,1773702643429,-467.14695942,4.736e-05,2]
[408474817,1773702643440,-4507.7443354,4.784e-05,2]
[408474818,1773702643449,-1200.0,5.286e-05,2]
[408474819,1773702643459,-300.0,5.287e-05,2]
[408474820,1773702643470,-300.0,5.287e-05,2]
[408474821,1773702643479,-300.0,5.287e-05,2]
[408474822,1773702643489,-300.0,5.287e-05,2]
[408474823,1773702643498,-1604.2785997,5.289e-05,2]
[408474824,1773702643508,-500.0,5.289e-05,2]
[408474825,1773702643517,-1680.0,5.815e-05,2]
[408474826,1773702643527,-420.0,5.816e-05,2]
[408474827,1773702643536,-300.0,5.816e-05,2]
[408474828,1773702643545,-420.0,5.816e-05,2]
[408474829,1773702643555,-3757.2618096,6.106e-05,2]
[408474830,1773702643564,-4481.54335002,6.155e-05,2]
[408474840,1773702646391,-227.6313032,6.155e-05,2]
[408474841,1773702646400,-9465.4994267,6.255e-05,2]
[408474842,1773702646411,-10602.77915686,6.355e-05,2]
[408474843,1773702646421,-2351.0,6.396e-05,2]
[408474845,1773702646431,-198.0,6.397e-05,2]
[408474847,1773702646441,-587.0,6.397e-05,2]
[408474848,1773702646450,-500.0,6.454e-05,2]
[408474849,1773702646459,-286.48586668,6.454e-05,2]
[408474850,1773702646468,-500.0,6.454e-05,2]
[408474851,1773702646477,-500.0,6.454e-05,2]
[408474852,1773702646486,-527.90306021,6.454e-05,2]
[408474853,1773702646495,-11611.95423876,6.455e-05,2]
[408474854,1773702646504,-287.89963265,6.61e-05,2]
[408474855,1773702646513,-500.0,6.81e-05,2]
[408474856,1773702646523,-3511.89879372,7.026e-05,2]
[408474857,1773702646532,-2495.55047735,7.026e-05,2]
[408474858,1773702646541,-151.0,7.026e-05,2]
[408474859,1773702646550,-3292.0,7.036e-05,2]
[408474860,1773702646564,-823.0,7.037e-05,2]
[408474861,1773702646573,-624.51213147,7.059e-05,2]
[408474862,1773702646582,-414.4349203,7.1e-05,2]
[408474863,1773702646591,-1538.35202127,7.1e-05,2]
[408474864,1773702646600,-976.39347078,7.1e-05,2]
[408474865,1773702646609,-1671.87095302,7.1e-05,2]
[408474866,1773702646619,-1289.19596247,7.1e-05,2]
[408474867,1773702646628,-564.22501036,7.164e-05,2]
[408474868,1773702646637,-1665.054254,7.184e-05,2]
[408474869,1773702646646,-27854.6523542,7.184e-05,2]
[408474870,1773702646655,-151.0,7.236e-05,2]
[408474871,1773702646664,-7559.9231798,7.263e-05,2]
[408474872,1773702646673,-500.0,7.313e-05,2]
[408474873,1773702646686,-500.0,7.313e-05,2]
[408474874,1773702646697,-500.0,7.313e-05,2]
[408474875,1773702646706,-500.0,7.313e-05,2]
[408474876,1773702646715,-500.0,7.313e-05,2]
[408474877,1773702646726,-500.0,7.313e-05,2]
[408474878,1773702646735,-500.0,7.313e-05,2]
[408474879,1773702646744,-500.0,7.313e-05,2]
[408474880,1773702646754,-501.38282056,7.313e-05,2]
[408474881,1773702646763,-151.0,7.313e-05,2]
[408474882,1773702646772,-151.0,7.336e-05,2]
[408474883,1773702646781,-522.87,7.405e-05,2]
[408474884,1773702646790,-500.45972937,7.412e-05,2]
[408474885,1773702646799,-856.1053025,7.479e-05,2]
[408474886,1773702646808,-441.17050911,7.536e-05,2]
[408474887,1773702647144,-7815.59300432,7.536e-05,2]
[408474888,1773702647155,-12016.39653973,7.536e-05,2]
[408474889,1773702647180,-1119.0,7.536e-05,2]
[408474891,1773703203300,154.02,2e-05,2]
[408474892,1773703577696,1000.78270793,2e-05,2]
[408474893,1773703824326,-1991.09406863,2.277e-05,2]
[408474912,1773703832356,-3008.90593137,2.277e-05,2]
[408474913,1773703832365,-381.9,2.3e-05,2]
[408474915,1773703832375,-189.0470585,6.358e-05,2]
[408474917,1773703832384,-160.566907,6.477e-05,2]
[408474919,1773703832394,-500.0,6.53e-05,2]
[408474921,1773703832403,-377.962413,6.891e-05,2]
[408474923,1773703832412,-377.962413,7.181e-05,2]
[408474925,1773703832421,-1200.0,7.199e-05,2]
[408474927,1773703832430,-150.64962524,7.2e-05,2]
[408474929,1773703832439,-151.73721931,7.2e-05,2]
[408474931,1773703832447,-152.01699011,7.2e-05,2]
[408474933,1773703832456,-317.48901151,7.2e-05,2]
[408474935,1773703832465,-293.0,7.298e-05,2]
[408474936,1773703832474,-151.92328389,7.3e-05,2]
[408474938,1773703832483,-155.14365867,7.3e-05,2]
[408474940,1773703832492,-156.0640063,7.3e-05,2]
[408474942,1773703832505,-225.32256225,7.335e-05,2]
[408474944,1773703832514,-500.0,7.335e-05,2]
[408474947,1773703832523,-500.0,7.335e-05,2]
[408474950,1773703832532,-500.0,7.335e-05,2]
[408474953,1773703832541,-500.0,7.335e-05,2]
[408474956,1773703832550,-432.64819041,7.335e-05,2]
[408474958,1773703832559,-239.96211677,7.335e-05,2]
[408474960,1773703832568,-202.869,7.335e-05,2]
[408474962,1773703832577,-4053.42961267,7.336e-05,2]
[408474967,1773703832617,-361.63977585,7.336e-05,2]
[408474969,1773703832633,-67246.62281636,7.336e-05,2]
[408475043,1773703838910,-546.61203723,7.336e-05,2]
[408475105,1773703844407,-1983.165,7.263e-05,2]
[408475106,1773703844419,-3016.835,7.263e-05,2]
[408475107,1773703844429,-21093.54829793,7.336e-05,2]
[408475108,1773703844579,-19721.62095219,7.336e-05,2]
[408475154,1773704402426,154.02,2e-05,2]
[408475204,1773705031646,-5000.0,2.583e-05,2]
[408475206,1773705031656,-5000.0,2.609e-05,2]
[408475208,1773705031665,-307.61183717,2.635e-05,2]
[408475210,1773705031675,-300.0,2.734e-05,2]
[408475212,1773705031684,-32.0049448,2.734e-05,2]
[408475258,1773705037605,-267.9950552,2.734e-05,2]
[408475259,1773705037615,-691.71996982,2.734e-05,2]
[408475260,1773705037649,-508.28003018,2.734e-05,2]
[408475261,1773705037658,-293.0,3.007e-05,2]
[408475262,1773705037669,-1680.0,3.007e-05,2]
[408475263,1773705037679,-849.0,3.308e-05,2]
[408475264,1773705037688,-398.48786114,3.614e-05,2]
[408475265,1773705037698,-977.99826894,5e-05,2]
[408475289,1773705039954,-1448.47354218,2.707e-05,2]
[408475290,1773705039964,-3560.96476289,5e-05,2]
[408475291,1773705039974,-9213.68192713,5.1e-05,2]
[408475292,1773705039984,-10310.94475003,5.2e-05,2]
[408475293,1773705039994,-11206.61303603,5.3e-05,2]
[408475294,1773705040003,-500.0,5.399e-05,2]
[408475295,1773705040013,-500.0,5.399e-05,2]
[408475296,1773705040024,-500.0,5.399e-05,2]
[408475297,1773705040034,-147.97650964,5.399e-05,2]
[408475414,1773705045603,-284.67168077,5.399e-05,2]
[408475415,1773705045612,-500.0,5.399e-05,2]
[408475416,1773705045621,-239.96211677,5.399e-05,2]
[408475417,1773705045631,-96.36620246,5.399e-05,2]
[408475418,1773705045815,-128.95635979,5.399e-05,2]
[408475419,1773705045824,-11408.207573,5.4e-05,2]
[408475420,1773705045834,-300.0,5.479e-05,2]
[408475421,1773705045843,-3383.6729805,5.479e-05,2]
[408475422,1773705045853,-161.87281991,5.804e-05,2]
[408475423,1773705045862,-500.0,6.53e-05,2]
[408475424,1773705045871,-194.48316372,6.969e-05,2]
[408475432,1773705602533,154.02,2e-05,2]
[408475436,1773706184922,162.442153,3.707e-05,120]
[408475473,1773706231670,-467.52642622,2.038e-05,2]
[408475480,1773706231734,-2142.08896324,2.038e-05,2]
[408475482,1773706231745,-2390.38461054,2.038e-05,2]
[408475484,1773706231755,-1465.56171845,2.059e-05,2]
[408475486,1773706231764,-381.9,2.3e-05,2]
[408475488,1773706231774,-189.0470585,3.678e-05,2]
[408475490,1773706231783,-162.442153,3.707e-05,2]
[408475492,1773706231793,-377.962414,4.071e-05,2]
[408475495,1773706231802,-377.962414,4.243e-05,2]
[408475498,1773706231811,-1200.0,4.413e-05,2]
[408475500,1773706231820,-377.962414,4.414e-05,2]
[408475503,1773706231830,-377.962414,4.586e-05,2]
[408475505,1773706231839,-168.3266525,4.757e-05,2]
[408475507,1773706231850,-209.6357615,4.757e-05,2]
[408475509,1773706231859,-120.40644748,4.928e-05,2]
[408475717,1773706239112,-257.55596652,4.928e-05,2]
[408475718,1773706239123,-300.0,6.349e-05,2]
[408475719,1773706239133,-300.0,6.351e-05,2]
[408475720,1773706239142,-5972.1200652,6.353e-05,2]
[408475721,1773706239152,-454.883801,6.724e-05,2]
[408475722,1773706239161,-202.869,6.923e-05,2]
[408475723,1773706239170,-37124.83385864,6.964e-05,2]
[408475724,1773706239181,-777.43067162,6.964e-05,2]
[408475725,1773706239253,-2491.64783155,6.964e-05,2]
[408475951,1773706246072,-5537.70000089,6.964e-05,2]
[408475962,1773706802811,154.02,2e-05,2]
[408475993,1773707432968,-380.32218432,5.35e-05,2]
[408475996,1773707432980,-4619.67781568,5.35e-05,2]
[408475998,1773707432990,-3189.64659984,5.404e-05,2]
[408476006,1773707433070,-1810.35340016,5.404e-05,2]
[408476008,1773707433080,-1200.0,5.458e-05,2]
[408476009,1773707433089,-300.0,5.502e-05,2]
[408476011,1773707433099,-300.0,5.502e-05,2]
[408476012,1773707433108,-2554.80929979,5.503e-05,2]
[408476013,1773707433118,-300.0,5.602e-05,2]
[408476015,1773707433127,-5655.0214179,5.603e-05,2]
[408476017,1773707433136,-1629.8944566,5.683e-05,2]
[408476019,1773707433147,-2349.54091829,5.703e-05,2]
[408476196,1773707438134,-3924.9763648,5.703e-05,2]
[408476197,1773707438144,-1650.05974869,5.803e-05,2]
[408476198,1773707438155,-4673.3347336,5.803e-05,2]
[408476199,1773707438164,-317.48901151,5.803e-05,2]
[408476200,1773707438173,-6894.01314836,5.903e-05,2]
[408476201,1773707438183,-480.0,6.004e-05,2]
[408476202,1773707438192,-420.0,6.052e-05,2]
[408476203,1773707438202,-307.14544081,6.633e-05,2]
[408476204,1773707438211,-500.0,6.633e-05,2]
[408476205,1773707438220,-587.0,6.657e-05,2]
[408476206,1773707438229,-500.0,6.659e-05,2]
[408476207,1773707438238,-500.0,6.659e-05,2]
[408476208,1773707438247,-500.0,6.659e-05,2]
[408476209,1773707438256,-500.0,6.659e-05,2]
[408476210,1773707438265,-500.0,6.659e-05,2]
[408476211,1773707438275,-309.85035975,6.659e-05,2]
[408476212,1773707438287,-190.14964025,6.659e-05,2]
[408476213,1773707438297,-500.0,6.659e-05,2]
[408476214,1773707438307,-445.03685658,6.659e-05,2]
[408476215,1773707438316,-414.27094384,6.659e-05,2]
[408476221,1773707442821,-1202.22657072,6.593e-05,2]
[408476222,1773707442832,-396.27900709,6.593e-05,2]
[408476262,1773707446113,-1679.0,6.527e-05,2]
[408476263,1773707462286,-1214.80255215,6.462e-05,2]
[408476264,1773707912421,1683.46,0.0001,120]
[408476265,1773707935835,1262.6,0.0001,120]
[408476266,1773707959721,946.95,0.0001,120]
[408476267,1773708002530,154.02,2e-05,2]
[408476268,1773708231789,1420.42,0.0001,120]
[408476269,1773708252162,710.21,0.0001,120]
[408476270,1773708266913,710.21,0.0001,120]
[408476285,1773708632031,-3785.19744785,4.661e-05,2]
[408476286,1773708632041,-1200.0,4.707e-05,2]
[408476287,1773708632050,-5000.0,4.708e-05,2]
[408476288,1773708632059,-300.0,5.046e-05,2]
[408476289,1773708632068,-300.0,5.046e-05,2]
[408476290,1773708632077,-300.0,5.046e-05,2]
[408476291,1773708632086,-300.0,5.048e-05,2]
[408476293,1773708632095,-214.6135444,5.052e-05,2]
[408476294,1773708632104,-256.0,5.178e-05,2]
[408476295,1773708632113,-7209.51569004,5.382e-05,2]
[408476296,1773708632124,-9075.59281743,5.382e-05,2]
[408476297,1773708632134,-5935.15494633,5.382e-05,2]
[408476298,1773708632143,-420.0,5.551e-05,2]
[408476299,1773708632153,-420.0,5.551e-05,2]
[408476301,1773708632162,-420.0,5.551e-05,2]
[408476303,1773708632171,-420.0,5.553e-05,2]
[408476305,1773708632180,-161.31399344,5.639e-05,2]
[408476307,1773708632189,-587.0,6.106e-05,2]
[408476309,1773708632198,-239.0,6.106e-05,2]
[408476311,1773708632207,-180.0,6.106e-05,2]
[408476313,1773708632217,-209.08950344,6.242e-05,2]
[408476316,1773708632227,-324.6804912,6.308e-05,2]
[408476317,1773708632236,-151.0,6.341e-05,2]
[408476319,1773708632245,-151.0,6.341e-05,2]
[408476321,1773708632254,-151.0,6.341e-05,2]
[408476323,1773708632263,-151.0,6.341e-05,2]
[408476325,1773708632272,-151.0,6.341e-05,2]
[408476327,1773708632281,-151.0,6.341e-05,2]
[408476329,1773708632291,-151.0,6.341e-05,2]
[408476331,1773708632301,-151.0,6.341e-05,2]
[408476333,1773708632310,-151.0,6.341e-05,2]
[408476335,1773708632319,-151.0,6.341e-05,2]
[408476337,1773708632328,-151.0,6.341e-05,2]
[408476339,1773708632337,-6564.14223585,6.343e-05,2]
[408476342,1773708632349,-679.23543468,6.343e-05,2]
[408476406,1773708638155,-500.0,6.339e-05,2]
[408476407,1773708638166,-465.80456998,6.339e-05,2]
[408476408,1773708638176,-502.58831501,6.339e-05,2]
[408476409,1773708638186,-500.0,6.339e-05,2]
[408476410,1773708638197,-172.81596771,6.339e-05,2]
[408476411,1773708638207,-500.0,6.339e-05,2]
[408476413,1773708638216,-500.0,6.339e-05,2]
[408476415,1773708638226,-500.0,6.339e-05,2]
[408476417,1773708638235,-500.0,6.339e-05,2]
[408476419,1773708638244,-500.0,6.339e-05,2]
[408476420,1773708638254,-500.0,6.339e-05,2]
[408476422,1773708638263,-500.0,6.339e-05,2]
[408476424,1773708638273,-500.0,6.339e-05,2]
[408476426,1773708638282,-500.0,6.339e-05,2]
[408476427,1773708638291,-500.0,6.339e-05,2]
[408476428,1773708638299,-500.0,6.339e-05,2]
[408476429,1773708638308,-500.0,6.339e-05,2]
[408476430,1773708638317,-500.0,6.339e-05,2]
[408476431,1773708638326,-500.0,6.339e-05,2]
[408476432,1773708638335,-500.0,6.339e-05,2]
[408476433,1773708638344,-500.0,6.339e-05,2]
[408476434,1773708638354,-500.0,6.339e-05,2]
[408476435,1773708638363,-317.17730491,6.339e-05,2]
[408476443,1773708640517,-4397.70110724,6.276e-05,2]
[408476454,1773708643388,-288.07357235,6.276e-05,2]
[408476462,1773708646283,-314.22532041,6.276e-05,2]
[408476463,1773708646293,-182.82269509,6.339e-05,2]
[408476464,1773708646301,-229.75924461,6.339e-05,2]
[408476465,1773708646310,-500.0,6.339e-05,2]
[408476466,1773708646326,-500.0,6.339e-05,2]
[408476467,1773708646339,-500.0,6.339e-05,2]
[408476468,1773708646348,-500.0,6.339e-05,2]
[408476469,1773708646359,-500.0,6.339e-05,2]
[408476470,1773708646369,-500.0,6.339e-05,2]
[408476471,1773708646378,-500.0,6.339e-05,2]
[408476472,1773708646387,-500.0,6.339e-05,2]
[408476473,1773708646397,-500.0,6.339e-05,2]
[408476474,1773708646407,-500.0,6.339e-05,2]
[408476475,1773708646416,-500.0,6.339e-05,2]
[408476476,1773708646426,-500.0,6.339e-05,2]
[408476477,1773708646435,-500.0,6.339e-05,2]
[408476478,1773708646444,-500.0,6.339e-05,2]
[408476479,1773708646454,-500.0,6.339e-05,2]
[408476480,1773708646463,-500.0,6.339e-05,2]
[408476481,1773708646473,-500.0,6.339e-05,2]
[408476482,1773708646482,-374.95,6.339e-05,2]
[408476483,1773708646491,-500.0,6.339e-05,2]
[408476484,1773708646501,-231.92325944,6.339e-05,2]
[408476485,1773708646512,-500.0,6.339e-05,2]
[408476486,1773708646521,-500.0,6.339e-05,2]
[408476487,1773708646531,-5477.28605787,6.343e-05,2]
[408476488,1773708646541,-13989.0097134,6.343e-05,2]
[408476489,1773708646551,-2633.6214867,6.343e-05,2]
[408476490,1773708646564,-151.0,6.343e-05,2]
[408476491,1773708646576,-151.0,6.343e-05,2]
[408476492,1773708646586,-151.0,6.343e-05,2]
[408476493,1773708646595,-151.0,6.343e-05,2]
[408476494,1773708646606,-151.0,6.343e-05,2]
[408476495,1773708646616,-151.0,6.343e-05,2]
[408476496,1773708646625,-172.37684369,6.343e-05,2]
[408476497,1773708646635,-151.0,6.343e-05,2]
[408476498,1773708646646,-151.0,6.343e-05,2]
[408476499,1773708646655,-151.0,6.343e-05,2]
[408476500,1773708646665,-151.0,6.343e-05,2]
[408476501,1773708646687,-151.0,6.343e-05,2]
[408476502,1773708646701,-151.0,6.343e-05,2]
[408476503,1773708646712,-151.0,6.343e-05,2]
[408476504,1773708646722,-198.522586,6.343e-05,2]
[408476505,1773708646731,-2114.062141,6.343e-05,2]
[408476506,1773708646740,-334.09138513,6.5e-05,2]
[408476507,1773708646750,-707.12982545,6.5e-05,2]
[408476508,1773708646760,-637.66652538,6.5e-05,2]
[408476509,1773708646770,-698.58165836,6.5e-05,2]
[408476510,1773708646780,-196.1382073,6.545e-05,2]
[408476511,1773708646790,-112158.67931598,6.593e-05,2]
[408476512,1773708646800,-1001.0,6.593e-05,2]
[408476513,1773708646809,-151.0,6.593e-05,2]
[408476514,1773708646819,-151.0,6.593e-05,2]
[408476515,1773708646828,-151.0,6.593e-05,2]
[408476516,1773708646840,-151.0,6.593e-05,2]
[408476517,1773708646849,-151.0,6.593e-05,2]
[408476518,1773708646860,-151.0,6.593e-05,2]
[408476519,1773708646869,-151.0,6.642e-05,2]
[408476520,1773708646879,-151.0,6.642e-05,2]
[408476521,1773708646888,-286.80074,6.642e-05,2]
[408476522,1773708646899,-500.0,6.643e-05,2]
[408476523,1773708646909,-500.0,6.643e-05,2]
[408476524,1773708646918,-500.0,6.643e-05,2]
[408476525,1773708646929,-500.0,6.643e-05,2]
[408476526,1773708646941,-500.0,6.643e-05,2]
[408476527,1773708646951,-500.0,6.643e-05,2]
[408476528,1773708646960,-500.0,6.643e-05,2]
[408476529,1773708646971,-166.0,6.659e-05,2]
[408476530,1773708646980,-690.0,6.659e-05,2]
[408476531,1773708646989,-166.0,6.659e-05,2]
[408476532,1773708646999,-690.0,6.659e-05,2]
[408476533,1773708647009,-228.55185079,6.659e-05,2]
[408476534,1773708647018,-351.0,6.659e-05,2]
[408476535,1773708647027,-166.0,6.659e-05,2]
[408476536,1773708647036,-155.0,6.659e-05,2]
[408476537,1773708647046,-166.0,6.659e-05,2]
[408476538,1773708647055,-690.0,6.659e-05,2]
[408476539,1773708647064,-351.0,6.659e-05,2]
[408476540,1773708647073,-166.0,6.659e-05,2]
[408476541,1773708647082,-155.0,6.659e-05,2]
[408476542,1773708647091,-172.0,6.659e-05,2]
[408476543,1773708647100,-351.0,6.659e-05,2]
[408476544,1773708647112,-690.0,6.659e-05,2]
[408476545,1773708647121,-158.76815919,6.659e-05,2]
[408476546,1773708647135,-166.0,6.659e-05,2]
[408476547,1773708647144,-351.0,6.659e-05,2]
[408476548,1773708647154,-690.0,6.659e-05,2]
[408476549,1773708647163,-166.0,6.659e-05,2]
[408476550,1773708647172,-351.0,6.659e-05,2]
[408476551,1773708647181,-690.0,6.659e-05,2]
[408476552,1773708647190,-166.0,6.659e-05,2]
[408476553,1773708647199,-351.0,6.659e-05,2]
[408476554,1773708647208,-690.0,6.659e-05,2]
[408476555,1773708647217,-166.0,6.659e-05,2]
[408476556,1773708647226,-351.0,6.659e-05,2]
[408476557,1773708647235,-690.0,6.659e-05,2]
[408476558,1773708647244,-166.0,6.659e-05,2]
[408476559,1773708647253,-351.0,6.659e-05,2]
[408476560,1773708647263,-690.0,6.659e-05,2]
[408476561,1773708647272,-172.0,6.659e-05,2]
[408476562,1773708647281,-351.0,6.659e-05,2]
[408476563,1773708647290,-690.0,6.659e-05,2]
[408476564,1773708647299,-166.0,6.659e-05,2]
[408476565,1773708647307,-351.0,6.659e-05,2]
[408476566,1773708647317,-690.0,6.659e-05,2]
[408476567,1773708647326,-351.0,6.659e-05,2]
[408476568,1773708647336,-690.0,6.659e-05,2]
[408476569,1773708647345,-351.0,6.659e-05,2]
[408476570,1773708647354,-690.0,6.659e-05,2]
[408476571,1773708647363,-351.0,6.659e-05,2]
[408476572,1773708647372,-690.0,6.659e-05,2]
[408476573,1773708647381,-351.0,6.659e-05,2]
[408476574,1773708647390,-690.0,6.659e-05,2]
[408476575,1773708647400,-351.0,6.659e-05,2]
[408476576,1773708647409,-690.0,6.659e-05,2]
[408476577,1773708647419,-351.0,6.659e-05,2]
[408476578,1773708647428,-339.0,6.659e-05,2]
[408476579,1773708647437,-690.0,6.659e-05,2]
[408476580,1773708647446,-351.0,6.659e-05,2]
[408476581,1773708647456,-339.0,6.659e-05,2]
[408476582,1773708647465,-690.0,6.659e-05,2]
[408476583,1773708647477,-351.0,6.659e-05,2]
[408476584,1773708647486,-445.28706194,6.659e-05,2]
[408476585,1773708647495,-690.0,6.659e-05,2]
[408476586,1773708647504,-351.0,6.659e-05,2]
[408476587,1773708647513,-690.0,6.659e-05,2]
[408476588,1773708647523,-351.0,6.659e-05,2]
[408476589,1773708647532,-690.0,6.659e-05,2]
[408476590,1773708647541,-453.7341023,6.659e-05,2]
[408476591,1773708647550,-690.0,6.659e-05,2]
[408476592,1773708647559,-690.0,6.659e-05,2]
[408476593,1773708647568,-690.0,6.659e-05,2]
[408476594,1773708647578,-690.0,6.659e-05,2]
[408476595,1773708647587,-690.0,6.659e-05,2]
[408476596,1773708647596,-108.85671291,6.659e-05,2]
[408476597,1773708647609,-581.14328709,6.659e-05,2]
[408476598,1773708647619,-690.0,6.659e-05,2]
[408476599,1773708647629,-690.0,6.659e-05,2]
[408476600,1773708647639,-690.0,6.659e-05,2]
[408476601,1773708647649,-690.0,6.659e-05,2]
[408476602,1773708647667,-690.0,6.659e-05,2]
[408476603,1773708647679,-690.0,6.659e-05,2]
[408476604,1773708647690,-690.0,6.659e-05,2]
[408476605,1773708647700,-690.0,6.659e-05,2]
[408476606,1773708647711,-690.0,6.659e-05,2]
[408476607,1773708647730,-690.0,6.659e-05,2]
[408476608,1773708647740,-23.64699353,6.659e-05,2]
[408476614,1773709202656,173.41,2e-05,2]
[408476615,1773709405558,5000.0,2.001e-05,2]
[408476616,1773709413944,720.93717673,2.001e-05,2]
[408476617,1773709421969,5000.0,2.001e-05,2]
[408476621,1773709790378,-250.0,0.00035067,120]
[408476622,1773709790398,-500.0,0.00035067,120]
[408476623,1773709790419,-500.0,0.00035067,120]
[408476624,1773709790439,-500.0,0.00035067,120]
[408476625,1773709790459,-500.0,0.00035067,120]
[408476626,1773709790478,-605.96981814,0.00035067,120]
[408476627,1773709790497,-489.50542376,0.00035067,120]
[408476628,1773709790519,-221.87113109,0.00035067,120]
[408476629,1773709790538,-221.87113109,0.00035067,120]
[408476630,1773709790557,-221.87113109,0.00035067,120]